{"text_format":"3","workbook":"xlsx","n_sheets":3,"sheets":["Start","Cadeaubudget en tracker","Gegevens"],"not_rendered":{"charts":1,"defined_names":1},"read":"whole","date_system":"1900"}

{"sheet":"Start","index":0,"n_rows":7,"n_cols":2,"rows_kept":7}
[null,"Over de sjabloon"]
[null,"Gebruik deze sjabloon om uw cadeauaankopen te registreren en bij te houden op basis van het budget."]
[null,"Voer in de tabel de namen in van familie en vrienden, cadeau-items, gebudgetteerde en uitgegeven bedragen en notities, en selecteer een gelegenheid en gebeurtenismaand."]
[null,"Maandelijkse overzichtsgrafiek wordt automatisch bijgewerkt."]
[null,"Notitie: "]
[null,"Kolom A van het werkblad FEESTDAGENBUDGETPLANNER bevat aanvullende instructies. Deze tekst is opzettelijk verborgen. Als u tekst wilt verwijderen, selecteert u kolom A en drukt u op Delete. Als u de tekst zichtbaar wilt maken, selecteert u kolom A en wijzigt u de tekenkleur."]
[null,"Als u meer wilt weten over een tabel, drukt u in de tabel op Shift en F10 en selecteert u de optie Tabel en vervolgens Alternatieve tekst."]

{"sheet":"Cadeaubudget en tracker","index":1,"n_rows":10,"n_cols":13,"rows_kept":10,"merged":[[0,1,0,4],[0,5,0,12],[1,1,1,2],[2,1,2,12],[3,1,3,3]]}
["Maak een persoonlijk cadeaubudget en houd het bij op dit werkblad. De titel van het werkblad staat in de cel rechts en de tip in cel F1. Cellen in deze kolom bevatten handige instructies voor het gebruik van dit werkblad.","Cadeaubudget en tracker",{"$nulls":3},"Vul zoveel mogelijk in aan het begin van elk nieuw jaar. Voer namen in van familie en vrienden, selecteer een cadeaugelegenheid, selecteer de maand van het evenement en typ hoeveel u wilt uitgeven. Elke persoon kan meerdere keren in de tabel worden weergegeven voor elke andere gelegenheid (verjaardag, feestdag, feest enzovoort)."]
["Het label Maandelijks overzicht bevindt zich in de cel aan de rechterkant en de punt in cel D2.","Maandelijks overzicht",null,"Gebruik de grafiek om de komende maanden te bekijken en vooruit te plannen. Registreer uw aankopen om ze bij te houden op basis van uw budget."]
["Het kolomdiagram voor gebudgetteerde bedragen met de overlay van het lijndiagram voor het uitgegeven bedrag staat in de cel aan de rechterkant.","Het kolomdiagram voor gebudgetteerde bedragen met de overlay van het lijndiagram voor het uitgegeven bedrag staat in deze cel."]
["Het label voor het cadeaubudget en de tracker bevindt zich in de cel aan de rechterkant.","Cadeaubudget en tracker"]
["Voer de gegevens in in de tabel Budgettracker die begint in de cel rechts.","Wie","Gelegenheid","Maand","Bedrag\nbegroot","Bedrag\nbesteed","Donatie","Koppeling naar cadeau","In de winkel/\nOnline","Gekocht?","Ingepakt?","Bezorgd?","Opmerkingen"]
[null,"Naam 1","Verjaardagen","Juni",{"v":50,"d":"€ 50"},{"v":30,"d":"€ 30"},"Schoenen","Verkoper","Online","Ja","Nee","Nee","16-6, Filmkaartjes"]
[null,"Naam 2","Speciale datums","April",{"v":20,"d":"€ 20"},{"v":20,"d":"€ 20"},"Kat","Verkoper","In de winkel","Nee","Nee","Nee","Hij zei dat hij van honden houdt"]
[null,"Naam 3","Feestdagen","Juli",{"v":50,"d":"€ 50"},{"v":70,"d":"€ 70"},"Koptelefoon","Verkoper","Online","Nee","Nee","Nee","Dingen voor op de slaapkamer"]
[null,"Naam 4","Verjaardagen","Januari",{"v":20,"d":"€ 20"},{"v":30,"d":"€ 30"},"Game","Verkoper","In de winkel","Ja","Ja","Ja"]
[null,"Naam 5","Bruiloften","Juni",{"v":100,"d":"€ 100"},{"v":150,"d":"€ 150"},"Kristallen vaas","Verkoper","In de winkel","Ja","Ja","Nee"]

{"sheet":"Gegevens","index":2,"n_rows":13,"n_cols":8,"rows_kept":13,"hidden":true}
["Gelegenheden",null,"Datum","Datum","Gebudgetteerd bedrag\nVerjaardagen","Gebudgetteerd bedrag\nFeestdagen","Gebudgetteerd bedrag\nOverig","Uitgegeven bedrag"]
["Verjaardagen",null,"Januari","Jan",{"$f":"SUMIFS(BudgetTracker[Bedrag\nbegroot],BudgetTracker[Maand],\"Januari\",BudgetTracker[Gelegenheid],\"Verjaardagen\")","v":{"v":20,"d":"€ 20"}},{"$f":"SUMIFS(BudgetTracker[Bedrag\nbegroot],BudgetTracker[Maand],\"Januari\",BudgetTracker[Gelegenheid],\"Feestdagen\")","v":{"v":0,"d":"€ 0"}},{"$f":"SUMIFS(BudgetTracker[Bedrag\nbegroot],BudgetTracker[Maand],\"Januari\",BudgetTracker[Gelegenheid],\"<>Feestdagen\",BudgetTracker[Gelegenheid],\"<>Verjaardagen\")","v":{"v":0,"d":"€ 0"}},{"$f":"SUMIFS(BudgetTracker[Bedrag\nbesteed],BudgetTracker[Maand],\"Januari\")","v":{"v":30,"d":"€ 30"}}]
["Feestdagen",null,"Februari","feb",{"$f":"SUMIFS(BudgetTracker[Bedrag\nbegroot],BudgetTracker[Maand],\"Februari\",BudgetTracker[Gelegenheid],\"Verjaardagen\")","v":{"v":0,"d":"€ 0"}},{"$f":"SUMIFS(BudgetTracker[Bedrag\nbegroot],BudgetTracker[Maand],\"Februari\",BudgetTracker[Gelegenheid],\"Feestdagen\")","v":{"v":0,"d":"€ 0"}},{"$f":"SUMIFS(BudgetTracker[Bedrag\nbegroot],BudgetTracker[Maand],\"Februari\",BudgetTracker[Gelegenheid],\"<>Feestdagen\",BudgetTracker[Gelegenheid],\"<>Verjaardagen\")","v":{"v":0,"d":"€ 0"}},{"$f":"SUMIFS(BudgetTracker[Bedrag\nbesteed],BudgetTracker[Maand],\"Februari\")","v":{"v":0,"d":"€ 0"}}]
["Speciale datums",null,"Maart","mrt",{"$f":"SUMIFS(BudgetTracker[Bedrag\nbegroot],BudgetTracker[Maand],\"Maart\",BudgetTracker[Gelegenheid],\"Verjaardagen\")","v":{"v":0,"d":"€ 0"}},{"$f":"SUMIFS(BudgetTracker[Bedrag\nbegroot],BudgetTracker[Maand],\"Maart\",BudgetTracker[Gelegenheid],\"Feestdagen\")","v":{"v":0,"d":"€ 0"}},{"$f":"SUMIFS(BudgetTracker[Bedrag\nbegroot],BudgetTracker[Maand],\"Maart\",BudgetTracker[Gelegenheid],\"<>Feestdagen\",BudgetTracker[Gelegenheid],\"<>Verjaardagen\")","v":{"v":0,"d":"€ 0"}},{"$f":"SUMIFS(BudgetTracker[Bedrag\nbesteed],BudgetTracker[Maand],\"Maart\")","v":{"v":0,"d":"€ 0"}}]
["Bruiloften",null,"April","apr",{"$f":"SUMIFS(BudgetTracker[Bedrag\nbegroot],BudgetTracker[Maand],\"April\",BudgetTracker[Gelegenheid],\"Verjaardagen\")","v":{"v":0,"d":"€ 0"}},{"$f":"SUMIFS(BudgetTracker[Bedrag\nbegroot],BudgetTracker[Maand],\"April\",BudgetTracker[Gelegenheid],\"Feestdagen\")","v":{"v":0,"d":"€ 0"}},{"$f":"SUMIFS(BudgetTracker[Bedrag\nbegroot],BudgetTracker[Maand],\"April\",BudgetTracker[Gelegenheid],\"<>Feestdagen\",BudgetTracker[Gelegenheid],\"<>Verjaardagen\")","v":{"v":20,"d":"€ 20"}},{"$f":"SUMIFS(BudgetTracker[Bedrag\nbesteed],BudgetTracker[Maand],\"April\")","v":{"v":20,"d":"€ 20"}}]
["Vrijgezellenfeestjes",null,"Mei","mei",{"$f":"SUMIFS(BudgetTracker[Bedrag\nbegroot],BudgetTracker[Maand],\"Mei\",BudgetTracker[Gelegenheid],\"Verjaardagen\")","v":{"v":0,"d":"€ 0"}},{"$f":"SUMIFS(BudgetTracker[Bedrag\nbegroot],BudgetTracker[Maand],\"Mei\",BudgetTracker[Gelegenheid],\"Feestdagen\")","v":{"v":0,"d":"€ 0"}},{"$f":"SUMIFS(BudgetTracker[Bedrag\nbegroot],BudgetTracker[Maand],\"Mei\",BudgetTracker[Gelegenheid],\"<>Feestdagen\",BudgetTracker[Gelegenheid],\"<>Verjaardagen\")","v":{"v":0,"d":"€ 0"}},{"$f":"SUMIFS(BudgetTracker[Bedrag\nbesteed],BudgetTracker[Maand],\"Mei\")","v":{"v":0,"d":"€ 0"}}]
["Kraamvisites",null,"Juni","jun",{"$f":"SUMIFS(BudgetTracker[Bedrag\nbegroot],BudgetTracker[Maand],\"Juni\",BudgetTracker[Gelegenheid],\"Verjaardagen\")","v":{"v":50,"d":"€ 50"}},{"$f":"SUMIFS(BudgetTracker[Bedrag\nbegroot],BudgetTracker[Maand],\"Juni\",BudgetTracker[Gelegenheid],\"Feestdagen\")","v":{"v":0,"d":"€ 0"}},{"$f":"SUMIFS(BudgetTracker[Bedrag\nbegroot],BudgetTracker[Maand],\"Juni\",BudgetTracker[Gelegenheid],\"<>Feestdagen\",BudgetTracker[Gelegenheid],\"<>Verjaardagen\")","v":{"v":100,"d":"€ 100"}},{"$f":"SUMIFS(BudgetTracker[Bedrag\nbesteed],BudgetTracker[Maand],\"Juni\")","v":{"v":180,"d":"€ 180"}}]
["Diplomeringen",null,"Juli","jul",{"$f":"SUMIFS(BudgetTracker[Bedrag\nbegroot],BudgetTracker[Maand],\"Juli\",BudgetTracker[Gelegenheid],\"Verjaardagen\")","v":{"v":0,"d":"€ 0"}},{"$f":"SUMIFS(BudgetTracker[Bedrag\nbegroot],BudgetTracker[Maand],\"Juli\",BudgetTracker[Gelegenheid],\"Feestdagen\")","v":{"v":50,"d":"€ 50"}},{"$f":"SUMIFS(BudgetTracker[Bedrag\nbegroot],BudgetTracker[Maand],\"Juli\",BudgetTracker[Gelegenheid],\"<>Feestdagen\",BudgetTracker[Gelegenheid],\"<>Verjaardagen\")","v":{"v":0,"d":"€ 0"}},{"$f":"SUMIFS(BudgetTracker[Bedrag\nbesteed],BudgetTracker[Maand],\"Juli\")","v":{"v":70,"d":"€ 70"}}]
["Overig",null,"Augustus","aug",{"$f":"SUMIFS(BudgetTracker[Bedrag\nbegroot],BudgetTracker[Maand],\"Augustus\",BudgetTracker[Gelegenheid],\"Verjaardagen\")","v":{"v":0,"d":"€ 0"}},{"$f":"SUMIFS(BudgetTracker[Bedrag\nbegroot],BudgetTracker[Maand],\"Augustus\",BudgetTracker[Gelegenheid],\"Feestdagen\")","v":{"v":0,"d":"€ 0"}},{"$f":"SUMIFS(BudgetTracker[Bedrag\nbegroot],BudgetTracker[Maand],\"Augustus\",BudgetTracker[Gelegenheid],\"<>Feestdagen\",BudgetTracker[Gelegenheid],\"<>Verjaardagen\")","v":{"v":0,"d":"€ 0"}},{"$f":"SUMIFS(BudgetTracker[Bedrag\nbesteed],BudgetTracker[Maand],\"Augustus\")","v":{"v":0,"d":"€ 0"}}]
[null,null,"September","Sep",{"$f":"SUMIFS(BudgetTracker[Bedrag\nbegroot],BudgetTracker[Maand],\"September\",BudgetTracker[Gelegenheid],\"Verjaardagen\")","v":{"v":0,"d":"€ 0"}},{"$f":"SUMIFS(BudgetTracker[Bedrag\nbegroot],BudgetTracker[Maand],\"September\",BudgetTracker[Gelegenheid],\"Feestdagen\")","v":{"v":0,"d":"€ 0"}},{"$f":"SUMIFS(BudgetTracker[Bedrag\nbegroot],BudgetTracker[Maand],\"September\",BudgetTracker[Gelegenheid],\"<>Feestdagen\",BudgetTracker[Gelegenheid],\"<>Verjaardagen\")","v":{"v":0,"d":"€ 0"}},{"$f":"SUMIFS(BudgetTracker[Bedrag\nbesteed],BudgetTracker[Maand],\"September\")","v":{"v":0,"d":"€ 0"}}]
[null,null,"Oktober","Okt",{"$f":"SUMIFS(BudgetTracker[Bedrag\nbegroot],BudgetTracker[Maand],\"Oktober\",BudgetTracker[Gelegenheid],\"Verjaardagen\")","v":{"v":0,"d":"€ 0"}},{"$f":"SUMIFS(BudgetTracker[Bedrag\nbegroot],BudgetTracker[Maand],\"Oktober\",BudgetTracker[Gelegenheid],\"Feestdagen\")","v":{"v":0,"d":"€ 0"}},{"$f":"SUMIFS(BudgetTracker[Bedrag\nbegroot],BudgetTracker[Maand],\"Oktober\",BudgetTracker[Gelegenheid],\"<>Feestdagen\",BudgetTracker[Gelegenheid],\"<>Verjaardagen\")","v":{"v":0,"d":"€ 0"}},{"$f":"SUMIFS(BudgetTracker[Bedrag\nbesteed],BudgetTracker[Maand],\"Oktober\")","v":{"v":0,"d":"€ 0"}}]
[null,null,"November","Nov",{"$f":"SUMIFS(BudgetTracker[Bedrag\nbegroot],BudgetTracker[Maand],\"November\",BudgetTracker[Gelegenheid],\"Verjaardagen\")","v":{"v":0,"d":"€ 0"}},{"$f":"SUMIFS(BudgetTracker[Bedrag\nbegroot],BudgetTracker[Maand],\"November\",BudgetTracker[Gelegenheid],\"Feestdagen\")","v":{"v":0,"d":"€ 0"}},{"$f":"SUMIFS(BudgetTracker[Bedrag\nbegroot],BudgetTracker[Maand],\"November\",BudgetTracker[Gelegenheid],\"<>Feestdagen\",BudgetTracker[Gelegenheid],\"<>Verjaardagen\")","v":{"v":0,"d":"€ 0"}},{"$f":"SUMIFS(BudgetTracker[Bedrag\nbesteed],BudgetTracker[Maand],\"November\")","v":{"v":0,"d":"€ 0"}}]
[null,null,"December","Dec",{"$f":"SUMIFS(BudgetTracker[Bedrag\nbegroot],BudgetTracker[Maand],\"December\",BudgetTracker[Gelegenheid],\"Verjaardagen\")","v":{"v":0,"d":"€ 0"}},{"$f":"SUMIFS(BudgetTracker[Bedrag\nbegroot],BudgetTracker[Maand],\"December\",BudgetTracker[Gelegenheid],\"Feestdagen\")","v":{"v":0,"d":"€ 0"}},{"$f":"SUMIFS(BudgetTracker[Bedrag\nbegroot],BudgetTracker[Maand],\"December\",BudgetTracker[Gelegenheid],\"<>Feestdagen\",BudgetTracker[Gelegenheid],\"<>Verjaardagen\")","v":{"v":0,"d":"€ 0"}},{"$f":"SUMIFS(BudgetTracker[Bedrag\nbesteed],BudgetTracker[Maand],\"December\")","v":{"v":0,"d":"€ 0"}}]